bitfinex/quotes_ETHUSD_20220226
["timestamp","ask_amount","ask_price","bid_price","bid_amount"]
[1645916376524,0.00531113,2794.4,2794.2,0.516]
[1645916377325,1.913,2795.2,2794.2,0.516]
[1645916377530,1.5121133,2795.1,2794.2,0.516]
[1645916377730,1.113e-05,2794.4,2794.2,0.516]
[1645916377931,1.113e-05,2794.4,2794.3,3.50126157]
[1645916378132,1.113e-05,2794.4,2794.3,4.37336157]
[1645916378332,1.113e-05,2794.4,2794.3,21.11576157]
[1645916378531,1.113e-05,2794.4,2794.3,21.63601405]
[1645916378731,1.51202679,2795.3,2794.7,0.3561]
[1645916378938,0.66992779,2796.0,2794.8,1.76672]
[1645916379229,1.5119406,2796.0,2794.9,0.516]
[1645916379681,1.5119406,2796.0,2795.1,0.3561]
[1645916379883,1.5119406,2795.9,2795.2,0.8721]
[1645916380085,3.83842779,2796.6,2795.2,1.8721]
[1645916380283,2.62442779,2796.6,2795.2,2.1721]
[1645916380487,1.51175639,2796.5,2795.4,11.2361]
[1645916380685,1.51175639,2796.4,2795.6,2.08855]
[1645916380886,1.51175639,2796.3,2795.7,0.516]
[1645916381086,0.81282779,2797.0,2795.8,1.0]
[1645916381286,0.81282779,2797.0,2795.9,0.516]
[1645916381592,0.3561,2796.9,2795.9,0.516]
[1645916381987,0.5503372,2795.8,2795.6,2.08855]
[1645916382185,0.5503372,2795.8,2795.7,0.516]
[1645916382588,3.72e-05,2795.8,2795.7,6.152]
[1645916382791,3.72e-05,2795.8,2795.7,7.5081]
[1645916383186,3.72e-05,2795.8,2795.7,8.5081]
[1645916385656,1.2224,2797.4,2795.7,8.5081]
[1645916385657,9.73448727,2797.8,2795.8,14.3721]
[1645916385852,1.9703,2798.1,2796.5,18.22292]
[1645916386055,1.9703,2798.1,2796.6,4.016]
[1645916386253,1.9703,2798.1,2796.9,1.0]
[1645916386453,1.9703,2798.1,2797.0,0.516]
[1645916386655,0.3561,2798.0,2797.0,0.516]
[1645916386862,0.1429,2798.3,2797.1,0.89391]
[1645916387089,2.77992779,2798.8,2797.3,0.89369]
[1645916387287,2.77992779,2798.8,2797.4,0.516]
[1645916387288,0.0021146,2797.6,2797.4,0.516]
[1645916387485,0.0021146,2797.6,2797.5,8.1492]
[1645916387685,0.0021146,2797.6,2797.5,8.6652]
[1645916388088,0.0021146,2797.6,2797.5,11.34637]
[1645916388291,0.3561,2798.7,2797.5,11.34637]
[1645916388511,0.0021146,2797.7,2797.6,3.8]
[1645916388691,0.0021146,2797.7,2797.6,7.965]
[1645916389496,0.3561,2798.7,2797.6,7.965]
[1645916389692,0.0053087,2797.8,2797.6,7.965]
[1645916390293,0.0053087,2797.8,2797.7,0.89374]
[1645916390492,0.0053087,2797.8,2797.7,8.55844]
[1645916390695,0.3561,2798.7,2797.7,8.55844]
[1645916390922,0.00530864,2797.8,2797.7,8.55844]
[1645916391721,3.8561,2798.7,2797.7,8.55844]
[1645916391722,0.3561,2798.7,2797.7,8.55844]
[1645916392132,0.00530859,2797.9,2797.7,8.55844]
[1645916392927,0.3561,2798.5,2797.7,8.55844]
[1645916393233,0.00530853,2797.9,2797.7,8.55844]
[1645916394228,0.3561,2798.3,2797.7,8.55844]
[1645916394427,0.3561,2798.3,2797.7,7.6647]
[1645916394682,0.00530853,2797.9,2797.7,7.6647]
[1645916395478,0.3561,2798.6,2797.7,7.6647]
[1645916395678,0.00530853,2797.9,2797.7,8.55845]
[1645916396684,0.00390222,2798.6,2797.7,8.55845]
[1645916396880,0.00530853,2797.9,2797.7,8.55845]
[1645916397082,0.00530853,2797.9,2797.7,7.6647]
[1645916397288,0.00530853,2797.9,2797.7,7.1487]
[1645916397883,11.2361,2798.3,2797.7,7.1487]
[1645916398082,0.00530853,2797.9,2797.7,7.1487]
[1645916399129,0.3561,2798.1,2797.7,7.1487]
[1645916399329,0.00530853,2797.9,2797.7,7.1487]
[1645916400331,0.36000222,2798.4,2797.7,7.1487]
[1645916400532,0.36000222,2798.4,2797.7,7.115441]
[1645916400533,0.00530853,2797.9,2797.7,7.115441]
[1645916401532,0.3561,2798.0,2797.7,7.115441]
[1645916401736,0.89791492,2798.4,2797.7,7.115441]
[1645916401737,3.86140853,2797.9,2797.7,7.115441]
[1645916401934,3.8561,2797.8,2797.7,7.115441]
[1645916402200,3.8561,2797.8,2796.0,2.09968]
[1645916402201,2.41790049,2797.5,2796.2,1.0]
[1645916402400,0.01263446,2797.1,2796.2,1.0]
[1645916402600,1.25065,2797.0,2795.7,0.25]
[1645916402795,0.21562872,2796.6,2795.2,2.8583]
[1645916402995,0.3561,2796.6,2795.2,3.75284]
[1645916403197,1.772,2796.7,2795.2,7.76884]
[1645916403400,1.3,2796.7,2795.2,7.76884]
[1645916403594,0.6,2796.7,2795.2,7.76884]
[1645916403794,0.6,2796.7,2795.2,9.66332]
[1645916403795,0.3,2796.7,2795.2,9.66332]
[1645916403993,1.0374034,2796.9,2795.2,9.66332]
[1645916403994,0.3561,2796.8,2795.2,9.66332]
[1645916404194,0.00211852,2796.1,2795.2,9.66332]
[1645916404396,0.21562872,2796.0,2795.2,5.26884]
[1645916404595,0.00211852,2796.1,2795.2,5.26884]
[1645916404796,0.00211852,2796.1,2795.2,4.26884]
[1645916404995,0.3561,2796.6,2795.2,4.26884]
[1645916405402,0.00531444,2796.0,2795.2,1.41054]
[1645916405600,0.00531444,2796.0,2795.2,0.516]
[1645916405837,0.21562872,2795.6,2795.2,0.516]
[1645916406233,0.6485,2796.3,2795.1,0.1429]
[1645916406632,0.00531426,2796.0,2795.1,0.1429]
[1645916407239,11.24141426,2796.0,2795.1,0.1429]
[1645916407437,0.21562872,2795.6,2794.7,0.25]
[1645916407635,0.3561,2795.8,2794.6,2.20921851]
[1645916408036,0.3561,2795.8,2794.6,1.20921851]
[1645916408434,0.14821437,2796.0,2794.6,1.20921851]
[1645916408435,1.25099,2795.6,2794.6,1.20921851]
[1645916408634,0.3561,2795.7,2794.6,1.10921851]
[1645916408837,0.3561,2795.7,2794.7,0.1431]
[1645916408838,0.21562872,2795.3,2794.7,0.1431]
[1645916409036,0.3561,2795.7,2794.6,1.05921851]
[1645916409235,0.3561,2795.7,2795.2,0.78196684]
[1645916409436,0.0053141,2796.0,2795.2,0.78196684]
[1645916409877,0.6561,2796.3,2795.2,0.78196684]
[1645916410077,0.00531441,2796.0,2795.2,4.28196684]
[1645916410484,0.21562872,2795.8,2795.2,4.28196684]
[1645916410676,1.2508847,2795.9,2795.2,4.28196684]
[1645916411477,0.8947847,2795.9,2795.2,4.28196684]
[1645916411878,0.21562872,2795.6,2795.2,4.28196684]
[1645916412076,1.2508847,2795.9,2795.2,4.28196684]
[1645916413087,0.3561,2795.9,2795.2,4.28196684]
[1645916413362,0.00500929,2796.0,2795.2,4.28196684]
[1645916413556,0.1429,2796.1,2795.2,4.28196684]
[1645916413557,0.21562872,2795.6,2795.2,4.28196684]
[1645916414356,0.21562872,2795.6,2795.2,3.5]
[1645916414764,0.1429,2796.2,2795.2,3.5]
[1645916414960,0.21562872,2795.7,2795.2,3.5]
[1645916415159,0.00500929,2796.0,2795.2,3.5]
[1645916415859,1.7893571,2796.3,2795.2,3.5]
[1645916416060,0.00500942,2796.0,2795.2,3.5]
[1645916416265,0.00500942,2796.0,2795.3,0.3561]
[1645916416461,0.21562872,2795.6,2795.3,4.3721]
[1645916416661,0.21562872,2795.6,2795.3,0.8721]
[1645916416963,0.00500942,2796.0,2795.3,0.8721]
[1645916417187,0.91075227,2796.6,2795.3,0.8721]
[1645916417387,0.00502894,2796.0,2795.3,0.8721]
[1645916417589,0.00502894,2796.0,2795.3,0.516]
[1645916418306,0.21562872,2795.6,2795.3,0.516]
[1645916418493,0.37227547,2796.6,2795.3,0.516]
[1645916418494,0.00502908,2796.0,2795.3,0.516]
[1645916418693,0.00502908,2796.0,2795.3,0.8721]
[1645916419092,0.00502908,2796.0,2795.3,0.416]
[1645916419298,1.25586928,2796.0,2795.3,0.416]
[1645916419498,1.3937402,2796.0,2795.6,0.78196684]
[1645916419700,0.3,2795.9,2795.6,0.78196684]
[1645916420300,0.89483,2795.9,2795.6,0.78196684]
[1645916421226,0.21562872,2795.8,2795.6,0.78196684]
[1645916421426,0.89483,2795.9,2795.6,0.78196684]
[1645916422027,0.89483,2795.9,2795.2,2.73992171]
[1645916422632,0.21562872,2795.6,2795.2,2.73992171]
[1645916422832,0.89976773,2796.0,2795.2,2.73992171]
[1645916423033,0.3,2795.9,2795.2,2.73992171]
[1645916423233,0.6561,2795.9,2795.2,2.73992171]
[1645916423835,0.8949366,2795.7,2795.2,2.73992171]
[1645916424034,1.2510366,2795.7,2795.2,2.73992171]
[1645916424240,0.21562872,2795.4,2795.2,2.73992171]
[1645916424686,0.3561,2795.6,2795.2,2.73992171]
[1645916424886,1.41882324,2795.5,2795.2,2.73992171]
[1645916425084,0.4429,2795.7,2795.2,2.73992171]
[1645916425085,1.71882324,2795.6,2795.2,2.73992171]
[1645916425286,0.8950311,2795.4,2795.2,2.73992171]
[1645916425687,0.21562872,2795.3,2795.2,2.73992171]
[1645916426993,11.39562872,2795.3,2795.2,2.73992171]
[1645916427192,13.46182872,2795.3,2795.2,2.73992171]
[1645916427589,14.87884609,2795.3,2795.2,2.73992171]
[1645916427991,14.87884609,2795.3,2795.2,2.68992171]
[1645916428192,1.25127,2795.2,2794.5,0.27012062]
[1645916428435,1.25127,2795.2,2794.5,0.02012062]
[1645916428436,11.7521,2795.1,2794.5,0.02012062]
[1645916428635,12.0521,2795.1,2794.5,0.02012062]
[1645916428834,0.1431,2795.0,2794.5,0.02012062]
[1645916429031,0.1431,2795.0,2793.8,0.25]
[1645916429531,11.2361,2794.7,2794.2,0.02515158]
[1645916430132,0.21562872,2794.6,2794.2,0.02515158]
[1645916430334,0.21562872,2794.6,2793.8,0.25]
[1645916430532,11.2361,2794.7,2794.2,0.00503021]
[1645916430732,0.89525,2794.6,2794.2,0.00503021]
[1645916430933,0.8952656,2794.5,2794.2,0.00503021]
[1645916431633,0.21562872,2794.4,2793.3,0.1431]
[1645916431834,4.3952656,2794.5,2794.2,0.00503016]
[1645916432085,0.8952656,2794.5,2794.2,0.00503016]
[1645916432680,0.8952656,2794.5,2793.3,0.1431]
[1645916432883,4.3952656,2794.5,2794.2,0.00503016]
[1645916433082,0.21562872,2794.4,2794.2,0.00503016]
[1645916433280,0.8952656,2794.5,2794.2,0.00503016]
[1645916433883,0.3561,2794.3,2793.3,3.6431]
[1645916434083,3.5,2794.4,2794.2,0.00503016]
[1645916434287,0.8952656,2794.5,2794.2,0.00503016]
[1645916434884,0.21562872,2794.4,2794.2,0.00503016]
[1645916435086,0.21562872,2794.4,2793.3,3.6431]
[1645916435087,0.3561,2794.4,2793.3,3.6431]
[1645916435284,3.5,2794.3,2794.2,0.00503016]
[1645916435482,12.7752656,2794.5,2794.2,0.00503016]
[1645916435928,0.8952656,2794.5,2793.3,2.27535946]
[1645916436131,0.21562872,2794.2,2793.4,0.07562358]
[1645916436535,0.8952656,2794.5,2793.4,0.07562358]
[1645916437428,0.8952656,2794.5,2793.3,2.79135946]
[1645916437830,0.21562872,2793.9,2793.3,2.79135946]
[1645916438029,0.8952656,2794.5,2793.3,2.79135946]
[1645916439032,0.00531506,2794.0,2793.7,0.00531578]
[1645916439880,0.21562872,2794.1,2793.3,2.79135946]
[1645916440079,0.00531512,2794.0,2793.7,0.00531574]
[1645916440889,0.21562872,2793.9,2793.7,0.00531574]
[1645916441089,12.1313656,2794.5,2793.3,2.79135946]
[1645916441290,12.1313656,2794.5,2793.7,0.00531574]
[1645916441291,0.00531512,2794.0,2793.7,0.00531574]
[1645916442090,0.00451512,2794.0,2793.7,0.00531574]
[1645916442290,0.21562872,2793.8,2793.3,2.27535946]
[1645916442491,4.3952656,2794.5,2793.3,1.72535946]
[1645916442696,3.5812931,2795.0,2793.4,13.89404274]
[1645916442894,1.0,2795.3,2793.5,16.2361]
[1645916443094,1.0,2795.3,2794.1,0.3561]
[1645916443342,1.0,2795.3,2794.3,0.3561]
[1645916443539,1.0,2795.3,2794.5,0.3561]
[1645916443738,1.0,2795.3,2794.6,0.516]
[1645916444042,3.5,2796.1,2794.6,0.8721]
[1645916444438,0.1429,2796.0,2794.6,0.8721]
[1645916444838,0.1429,2796.0,2794.6,3.66139]
[1645916445043,5.7973,2796.2,2794.6,3.66139]
[1645916445241,0.1429,2796.1,2794.6,1.516]
[1645916445440,0.21562872,2795.4,2794.6,1.516]
[1645916445640,0.1429,2796.1,2794.6,0.516]
[1645916445641,0.8947843,2796.0,2794.6,0.516]
[1645916445842,3.5,2795.9,2794.6,0.516]
[1645916446042,0.8947843,2796.0,2794.6,0.8721]
[1645916446243,0.00531567,2795.1,2794.7,2.14554]
[1645916446445,0.00531567,2795.1,2794.8,0.516]
[1645916446845,0.21562872,2795.0,2794.9,0.3561]
[1645916447107,0.21562872,2795.0,2794.9,0.8721]
[1645916449008,0.21562872,2795.0,2794.7,0.89473]
[1645916449213,0.21562872,2795.0,2794.4,1.35336]
[1645916449407,0.00531573,2795.1,2794.5,7.1564]
[1645916449408,0.21562872,2794.9,2794.5,7.1564]
[1645916449609,3.9992,2796.1,2794.5,7.4564]
[1645916449806,0.00531584,2795.0,2794.5,7.4564]
[1645916450406,0.00531584,2795.0,2794.6,0.516]
[1645916450707,3.5,2795.8,2794.6,0.516]
[1645916450939,0.00531596,2794.9,2794.6,0.516]
[1645916451942,3.5,2795.8,2794.6,0.516]
[1645916452142,0.00531596,2794.9,2794.6,0.516]
[1645916452342,0.00531596,2794.9,2794.6,0.6591]
[1645916453143,4.7509185,2795.9,2794.6,0.6591]
[1645916453343,0.00531596,2794.9,2794.6,0.6591]
[1645916454144,0.21562872,2794.8,2794.6,0.6591]
[1645916454347,0.1431,2795.9,2794.6,0.6591]
[1645916454589,0.00531596,2794.9,2794.6,0.516]
[1645916455591,0.21562872,2795.2,2794.6,0.516]
[1645916455791,0.00213285,2794.9,2794.6,0.516]
[1645916456293,0.00213285,2794.9,2794.6,1.516]
[1645916456492,0.00213285,2794.9,2794.6,0.516]
[1645916456690,3.6431,2796.1,2794.7,1.0]
[1645916456896,0.00213285,2794.9,2794.8,1.41071]
[1645916457095,0.00213285,2794.9,2794.8,2.30539]
[1645916457394,0.00213285,2794.9,2794.8,3.38098293]
[1645916457793,1.42756063,2796.0,2794.8,3.38098293]
[1645916457994,1.42756063,2796.0,2794.9,0.07559293]
[1645916458193,0.00213285,2795.0,2794.9,0.59159293]
[1645916459036,0.21562872,2795.4,2794.9,0.59159293]
[1645916459237,1.0,2796.2,2795.0,0.07559293]
[1645916459439,0.00531467,2795.1,2795.0,0.07559293]
[1645916460240,0.21562872,2795.1,2795.0,0.07559293]
[1645916460640,0.21562872,2795.1,2795.0,1.07559293]
[1645916462083,0.19406585,2795.1,2795.0,1.07559293]
[1645916462278,0.00531455,2795.2,2795.0,1.07559293]
[1645916462482,0.00531455,2795.2,2795.1,0.07559293]
[1645916462683,3.5,2796.2,2795.1,0.07559293]
[1645916462884,0.0053145,2795.2,2795.1,0.07559293]
[1645916463888,3.5,2796.2,2795.1,0.07559293]
[1645916464086,0.00531444,2795.3,2795.1,0.89159293]
[1645916464294,0.00531444,2795.3,2795.2,0.07559293]
[1645916465189,3.5,2796.2,2795.2,0.07559293]
[1645916465391,0.00531433,2795.4,2795.2,0.07559293]
[1645916466348,2.1112,2796.4,2795.2,0.07559293]
[1645916466349,0.1429,2796.4,2795.2,0.07559293]
[1645916466547,0.00531427,2795.4,2795.3,1.41055]
[1645916466755,0.00531427,2795.4,2795.3,8.86545]
[1645916466756,1.427e-05,2795.4,2795.3,8.86545]
[1645916466956,1.427e-05,2795.4,2795.3,22.31314293]
[1645916467155,8.012e-05,2795.4,2795.3,30.16651131]
[1645916467358,0.81282779,2797.2,2795.3,30.16651131]
[1645916467359,5.60300061,2797.1,2795.4,2.4921]
[1645916467657,1.1791706,2797.0,2796.0,0.89429]
[1645916467851,0.00390222,2796.9,2796.1,0.516]
[1645916468655,0.00390222,2797.1,2796.1,0.516]
[1645916468853,0.00390222,2796.9,2796.2,0.89426]
[1645916469053,0.00212888,2796.6,2796.3,0.3]
[1645916469903,0.00390222,2797.1,2796.3,0.3]
[1645916470200,0.0019285,2796.6,2796.3,0.816]
[1645916470799,0.0019285,2796.6,2796.3,0.516]
[1645916471197,0.00390222,2797.1,2796.3,0.516]
[1645916471400,0.00511259,2796.6,2796.3,0.516]
[1645916472404,0.00390222,2797.3,2796.3,0.516]
[1645916472602,0.00511259,2796.6,2796.3,0.516]
[1645916473644,1.36000222,2797.3,2796.3,0.516]
[1645916473847,0.00511259,2796.6,2796.3,0.516]
[1645916474844,0.00390222,2797.3,2796.3,0.516]
[1645916475049,0.00531296,2796.6,2796.3,0.516]
[1645916475847,0.00390222,2797.3,2796.3,0.516]
[1645916476250,0.00531296,2796.6,2796.3,0.516]
[1645916477117,0.00390222,2797.1,2796.3,0.516]
[1645916477321,0.00390222,2797.2,2796.3,0.516]
[1645916477520,0.00531296,2796.6,2796.3,0.516]
[1645916478423,0.00390222,2797.2,2796.3,0.516]
[1645916478623,0.00531296,2796.6,2796.3,0.516]
[1645916479621,0.00390222,2797.3,2796.3,0.516]
[1645916479834,0.00531296,2796.6,2796.3,0.516]
[1645916480122,0.31531518,2797.3,2796.3,0.516]
[1645916480428,0.31928193,2797.3,2796.3,0.516]
[1645916480627,0.31928193,2797.3,2796.3,4.016]
[1645916482033,0.3561,2797.4,2796.3,4.016]
[1645916482234,0.00212887,2796.9,2796.3,4.016]
[1645916483235,4.9429,2797.5,2796.3,4.016]
[1645916483436,0.00531279,2796.7,2796.3,4.016]
[1645916484437,4.9429,2797.5,2796.3,4.016]
[1645916484692,1.4429,2797.5,2796.3,4.016]
[1645916484889,4.9429,2797.5,2796.3,4.016]
[1645916485092,3.9429,2797.5,2796.3,4.016]
[1645916485295,4.9429,2797.5,2796.3,4.016]
[1645916485696,3.6429,2797.5,2796.3,4.316]
[1645916485895,3.5,2797.5,2796.3,4.4589]
[1645916486096,1.8143,2797.6,2796.3,4.4589]
[1645916487097,0.00212488,2797.1,2796.5,0.89419]
[1645916487907,1.42259088,2797.5,2796.6,0.59155499]
[1645916488098,1.42259088,2797.4,2796.6,0.516]
[1645916488351,0.00531256,2796.9,2796.8,0.89405]
[1645916488539,0.00531256,2796.9,2796.8,7.667]
[1645916488739,1.256e-05,2796.9,2796.8,7.967]
[1645916488943,4.99466124,2796.9,2796.8,7.151]
[1645916489148,10.88,2796.8,2795.9,0.25]
[1645916489351,0.0129425,2796.0,2795.5,0.5]
[1645916489552,0.0129425,2796.0,2794.2,0.66557162]
[1645916489553,4.99464868,2795.7,2794.2,0.66557162]
[1645916489752,4.99464868,2795.7,2793.7,2.46566913]
[1645916489753,15.83207472,2795.6,2794.3,0.07560097]
[1645916489952,0.3561,2795.3,2794.4,0.07560097]
[1645916490149,0.3561,2795.3,2793.8,0.25]
[1645916490150,10.88,2794.7,2793.8,0.25]
[1645916490347,10.88,2794.5,2793.9,0.07562094]
[1645916490548,4.5152,2794.4,2793.3,1.6055]
[1645916490748,0.3561,2794.2,2793.4,0.07563002]
[1645916490950,0.516,2794.1,2793.4,0.07563002]
[1645916491349,1.1721,2794.1,2793.4,0.07563002]
[1645916491549,3.5,2794.0,2793.4,0.07563002]
[1645916491746,5.016,2794.0,2793.4,3.57563002]
[1645916491950,5.016,2794.0,2793.5,0.07563002]
[1645916492185,0.8953543,2794.2,2793.5,0.07563002]
[1645916492580,0.8953543,2794.2,2793.4,3.5]
[1645916492781,0.816,2794.3,2793.4,3.5]
[1645916492986,0.816,2794.3,2793.7,0.00531647]
[1645916493184,0.516,2794.3,2793.7,0.00531647]
[1645916493489,0.266,2794.3,2793.7,0.00531647]
[1645916493686,3.766,2794.3,2793.7,0.00531647]
[1645916493886,3.766,2794.3,2793.2,0.00324725]
[1645916494087,3.766,2794.3,2793.2,0.07887445]
[1645916494088,4.766,2794.3,2793.2,0.07887445]
[1645916494288,4.766,2794.3,2793.9,0.00531629]
[1645916494489,1.266,2794.3,2793.9,0.00531629]
[1645916494690,3.5,2794.2,2793.9,0.00531629]
[1645916494889,3.5,2794.2,2794.0,7.1582]
[1645916495088,1.0,2794.2,2794.0,7.0582]
[1645916495288,0.566,2794.3,2794.0,7.0582]
[1645916495690,0.266,2794.3,2794.0,7.0582]
[1645916496142,0.016,2794.3,2794.0,7.0582]
[1645916496841,11.7753569,2794.2,2794.0,7.0582]
[1645916497043,16.4758387,2794.1,2794.0,5.5572]
[1645916497245,21.7881,2794.1,2794.0,5.5572]
[1645916497444,27.78274868,2794.1,2794.0,5.3072]
[1645916498246,28.78274868,2794.1,2794.0,5.3072]
[1645916498652,28.78274868,2794.1,2793.5,42.01836401]
[1645916498653,10.88,2793.9,2793.5,42.01836401]
[1645916498851,10.88,2793.4,2792.7,0.00324725]
[1645916499054,10.88,2793.4,2791.6,1.9679]
[1645916499055,11.2361,2792.9,2792.0,0.25324725]
[1645916499248,11.2361,2792.7,2791.7,0.00324725]
[1645916499450,5.3721,2792.6,2791.7,0.07891497]
[1645916499697,0.89604,2792.4,2791.7,3.31451271]
[1645916499896,2.3080321,2792.4,2791.8,9.3276]
[1645916500299,2.6080321,2792.4,2791.8,9.3276]
[1645916500495,2.3080321,2792.4,2791.8,9.3276]
[1645916500698,3.6080321,2792.4,2791.8,9.3276]
[1645916500896,2.6080321,2792.4,2791.8,9.3276]
[1645916501095,3.6080321,2792.4,2791.8,9.3276]
[1645916501895,10.88,2792.3,2791.8,9.3276]
[1645916502202,12.29216,2792.2,2791.9,7.1632]
[1645916502396,0.8961457,2792.1,2791.9,7.1632]
[1645916502801,0.8961457,2792.1,2791.9,7.16850956]
[1645916502999,11.7761457,2792.1,2791.9,9.26850956]
[1645916503198,0.8961457,2792.1,2791.9,9.26850956]
[1645916503446,1.1961457,2792.1,2791.9,9.26850956]
[1645916503645,1.1961457,2792.1,2791.9,9.2632]
[1645916503646,0.8961457,2792.1,2791.9,9.2632]
[1645916504048,0.8961457,2792.1,2791.9,9.26850961]
[1645916504846,0.8961457,2792.1,2791.9,9.2632]
[1645916505348,11.7761457,2792.1,2791.9,9.26850961]
[1645916505545,11.77616,2792.0,2791.9,9.26850961]
[1645916505746,0.89616,2792.0,2791.9,9.26850961]
[1645916506148,0.89616,2792.0,2791.9,9.2632]
[1645916506747,0.8961457,2792.1,2791.9,9.2632]
[1645916507589,0.8961457,2792.1,2791.9,9.26851275]
[1645916507790,11.7761457,2792.1,2791.9,9.26851275]
[1645916508192,12.7761457,2792.1,2791.9,9.26851275]
[1645916508391,12.7761457,2792.1,2791.9,9.2632]
[1645916508694,11.77618,2792.0,2791.9,9.2632]
[1645916508896,11.77618,2792.0,2791.9,9.26851275]
[1645916509091,10.40894744,2792.0,2791.9,9.26851275]
[1645916509691,10.40894744,2792.0,2791.9,9.2632]
[1645916510592,11.30512744,2792.0,2791.9,9.2632]
[1645916511031,15.10512744,2792.0,2791.9,9.2632]
[1645916511239,0.8965,2791.9,2791.8,0.00319472]
[1645916511444,12.30544744,2791.9,2791.8,0.00319472]
[1645916511639,13.26454744,2791.9,2791.8,0.00319472]
[1645916511838,14.56454744,2791.9,2791.8,0.00319472]
[1645916512040,14.56454744,2791.9,2791.4,0.00324725]
[1645916512041,13.56454744,2791.9,2791.4,0.00324725]
[1645916512239,11.30525744,2791.7,2791.3,8.916]
[1645916512436,10.92494744,2791.6,2791.3,8.916]
[1645916513441,11.30527374,2791.5,2791.3,8.916]
[1645916513643,11.82127374,2791.5,2791.3,8.916]
[1645916514047,11.82127374,2791.5,2791.3,2.1]
[1645916514048,10.88,2791.4,2791.3,2.1]
[1645916514243,15.80510616,2791.4,2791.1,0.00324725]
[1645916514444,10.88,2791.3,2791.0,0.51791463]
[1645916514681,11.396,2791.3,2791.0,0.51791463]
[1645916514882,11.396,2791.3,2791.2,0.85139685]
[1645916515697,11.396,2791.3,2791.2,0.84607125]
[1645916515890,1.0,2791.4,2791.2,0.84607125]
[1645916516090,0.516,2791.6,2791.2,0.84607125]
[1645916516991,0.8963345,2791.5,2791.2,0.84607125]
[1645916517189,0.8963345,2791.5,2791.3,0.0031845]
[1645916517393,0.8963345,2791.5,2791.0,0.51791463]
[1645916517394,1.5,2791.3,2791.0,0.51791463]
[1645916517590,1.5,2791.3,2790.8,0.06051465]
[1645916517591,4.1593,2791.2,2790.8,0.06051465]
[1645916517791,10.88,2791.1,2790.8,0.06051465]
[1645916517995,10.88,2790.9,2790.8,0.06051465]
[1645916518192,11.396,2790.9,2790.5,9.11064725]
[1645916518445,13.396,2790.9,2790.5,9.06064725]
[1645916519351,10.88,2790.8,2790.5,9.06064725]
[1645916519548,10.87682022,2790.6,2790.1,0.06369816]
[1645916519747,14.89282022,2790.5,2790.1,0.06369816]
[1645916519947,14.89282022,2790.5,2790.1,0.06042481]
[1645916520246,15.89282022,2790.5,2790.4,3.6961182]
[1645916520448,12.39282022,2790.5,2790.4,3.6961182]
[1645916520849,11.39282022,2790.5,2790.4,3.6961182]
[1645916522103,11.396,2790.5,2790.4,3.6961182]
[1645916522305,14.896,2790.5,2790.4,3.6961182]
[1645916522703,11.396,2790.5,2790.4,3.6961182]
[1645916523308,0.516,2790.5,2790.4,3.6961182]
[1645916523510,0.8968037,2790.6,2790.4,3.6961182]
[1645916523713,5.6208916,2791.0,2790.4,3.6961182]
[1645916523714,1.0,2791.0,2790.4,3.6961182]
[1645916524109,1.90737547,2791.5,2790.4,3.6961182]
[1645916524311,10.88,2791.3,2790.5,0.00860063]
[1645916524911,11.18,2791.3,2790.5,0.00860063]
[1645916525112,1.3,2791.3,2790.5,0.00860063]
[1645916525412,2.19637,2791.4,2790.5,0.00860063]
[1645916525413,1.89637,2791.4,2790.5,0.00327335]
[1645916525612,0.89637,2791.4,2790.5,0.00860078]
[1645916526241,2.1,2791.3,2790.5,0.00860078]
[1645916526440,2.1,2791.3,2790.5,0.35937335]
[1645916526841,2.1,2791.3,2790.5,0.36470082]
[1645916527449,2.1,2791.3,2790.5,0.00860082]
[1645916527647,2.1,2791.3,2790.5,0.00327335]
[1645916528047,2.1,2791.3,2790.5,0.00860078]
[1645916528250,3.5,2791.2,2790.5,0.00860078]
[1645916528451,10.88,2791.0,2790.5,0.00860078]
[1645916528852,11.88,2791.0,2790.5,0.00327335]
[1645916529048,11.88,2791.0,2790.4,3.6961182]
[1645916529248,11.88,2791.0,2790.5,0.00532732]
[1645916529448,11.7766532,2790.9,2790.5,0.00532732]
[1645916530085,11.7766532,2790.9,2790.4,3.6961182]
[1645916530286,12.2926532,2790.9,2790.5,0.00317826]
[1645916530486,16.0926532,2790.9,2790.5,0.00317826]
[1645916530686,13.5926532,2790.9,2790.5,0.00317826]
[1645916530986,13.2926532,2790.9,2790.5,0.00317826]
[1645916531188,12.396,2790.9,2790.4,3.6961182]
[1645916531587,12.396,2790.9,2790.5,0.00317826]
[1645916532090,1.516,2790.9,2790.5,0.00317826]
[1645916532293,1.1433,2791.0,2790.5,0.00317826]
[1645916532488,1.0,2791.0,2790.4,3.6961182]
[1645916532687,1.0,2791.0,2790.5,0.00317826]
[1645916533641,1.0,2791.0,2790.4,3.6961182]
[1645916534039,1.0,2791.0,2790.5,0.00533046]
[1645916534842,1.0,2791.0,2790.4,3.6961182]
[1645916535241,1.03969,2791.2,2790.5,0.00533046]
[1645916536042,0.89639,2791.2,2790.4,4.0522182]
[1645916536443,0.89639,2791.2,2790.5,0.00533054]
[1645916537386,0.89639,2791.2,2790.4,4.0522182]
[1645916537585,2.1,2791.3,2790.5,0.00533054]
[1645916537787,2.1,2791.3,2790.5,0.00860389]
[1645916538585,2.1,2791.3,2790.5,0.00327335]
[1645916538785,2.1,2791.3,2790.5,0.00860393]
[1645916539789,2.1,2791.3,2790.5,0.00327335]
[1645916539996,2.1,2791.3,2790.5,0.00860393]
[1645916540592,3.5,2791.2,2790.5,0.00860393]
[1645916540844,14.38,2791.2,2790.5,0.00327335]
[1645916541236,10.88,2791.2,2790.5,0.00327335]
[1645916541435,10.88,2791.2,2790.5,0.00860393]
[1645916541836,2.1,2791.3,2790.5,0.00860393]
[1645916542037,2.1,2791.3,2790.4,3.65472213]
[1645916542434,2.1,2791.3,2790.5,0.00533054]
[1645916542640,12.98,2791.3,2790.5,0.00533054]
[1645916542835,3.1,2791.3,2790.5,0.00533054]
[1645916543338,3.1,2791.3,2790.4,3.65472213]